fUSD/lending_fUSD_20260503
["ID","MTS","AMOUNT","RATE_DAILY","PERIOD"]
[421500735,1777763441000,-1467.209359,0.00014662,2]
[421500780,1777763441000,-200.0,0.000147,2]
[421500737,1777763441000,-204.527714,0.00014662,2]
[421500786,1777763441000,-923.12,0.00014734,2]
[421500816,1777763441000,-197.439087,0.00014984,2]
[421500817,1777763441000,-197.43908,0.00014984,2]
[421500827,1777763441000,-500.0,0.00014999,2]
[421500825,1777763441000,-151.0,0.00014997,2]
[421500826,1777763441000,-153.45764577,0.00014997,2]
[421500818,1777763441000,-150.01,0.00014985,2]
[421500822,1777763441000,-200.0,0.00014995,2]
[421500823,1777763441000,-200.0,0.00014995,2]
[421500819,1777763441000,-500.0,0.00014993,2]
[421500820,1777763441000,-500.0,0.00014993,2]
[421500821,1777763441000,-661.22,0.00014993,2]
[421500824,1777763441000,-200.0,0.00014995,2]
[421500828,1777763441000,-500.0,0.00014999,2]
[421500815,1777763441000,-197.439087,0.00014984,2]
[421500832,1777763441000,-500.0,0.00014999,2]
[421500831,1777763441000,-500.0,0.00014999,2]
[421500839,1777763441000,-661.22,0.00014999,2]
[421500834,1777763441000,-190.37244341,0.00014999,2]
[421500833,1777763441000,-500.0,0.00014999,2]
[421500836,1777763441000,-661.22,0.00014999,2]
[421500835,1777763441000,-661.22,0.00014999,2]
[421500837,1777763441000,-661.22,0.00014999,2]
[421500838,1777763441000,-661.22,0.00014999,2]
[421500841,1777763441000,-196.80153823,0.00014999,2]
[421500840,1777763441000,-661.22,0.00014999,2]
[421500842,1777763441000,-500.0,0.00014999,2]
[421500843,1777763441000,-452.35211758,0.00014999,2]
[421500781,1777763441000,-200.0,0.000147,2]
[421500830,1777763441000,-501.65191721,0.00014999,2]
[421500807,1777763441000,-500.0,0.00014973,2]
[421500829,1777763441000,-500.0,0.00014999,2]
[421500812,1777763441000,-151.0,0.00014984,2]
[421500811,1777763441000,-36278.8645638,0.00014984,2]
[421500776,1777763441000,-661.22,0.00014699,2]
[421500782,1777763441000,-200.0,0.000147,2]
[421500785,1777763441000,-152.0,0.00014725,7]
[421500788,1777763441000,-36278.8645638,0.00014742,2]
[421500792,1777763441000,-200.0,0.00014847,2]
[421500790,1777763441000,-200.0,0.00014847,2]
[421500791,1777763441000,-200.0,0.00014847,2]
[421500794,1777763441000,-500.0,0.00014884,2]
[421500789,1777763441000,-255.0,0.0001482,2]
[421500796,1777763441000,-500.0,0.00014884,2]
[421500793,1777763441000,-36278.8645638,0.00014863,2]
[421500795,1777763441000,-500.0,0.00014884,2]
[421500798,1777763441000,-500.0,0.00014884,2]
[421500797,1777763441000,-500.0,0.00014884,2]
[421500810,1777763441000,-162.71056095,0.00014973,2]
[421500800,1777763441000,-500.0,0.00014884,2]
[421500809,1777763441000,-500.0,0.00014973,2]
[421500808,1777763441000,-500.0,0.00014973,2]
[421500805,1777763441000,-256.45192907,0.00014897,2]
[421500814,1777763441000,-197.439087,0.00014984,2]
[421500802,1777763441000,-500.0,0.00014884,2]
[421500787,1777763441000,-350.0,0.0001474,2]
[421500804,1777763441000,-622.07,0.00014884,2]
[421500813,1777763441000,-151.0,0.00014984,2]
[421500803,1777763441000,-806.83,0.00014884,2]
[421500799,1777763441000,-500.0,0.00014884,2]
[421500801,1777763441000,-501.62373704,0.00014884,2]
[421500806,1777763441000,-500.0,0.00014973,2]
[421500893,1777763442000,-280.620371,0.00015,2]
[421500882,1777763442000,-300.0,0.00015,2]
[421500883,1777763442000,-151.0,0.00015,2]
[421500896,1777763442000,-151.0,0.00015,2]
[421500884,1777763442000,-151.0,0.00015,2]
[421500881,1777763442000,-291153.48291644,0.00015,2]
[421500885,1777763442000,-280.620371,0.00015,2]
[421500877,1777763442000,-622.07,0.00014999,2]
[421500876,1777763442000,-622.07,0.00014999,2]
[421500875,1777763442000,-622.07,0.00014999,2]
[421500895,1777763442000,-151.0,0.00015,2]
[421500892,1777763442000,-280.620371,0.00015,2]
[421500869,1777763442000,-806.83,0.00014999,2]
[421500907,1777763442000,-1633.820874,0.00015,2]
[421500886,1777763442000,-280.620371,0.00015,2]
[421500887,1777763442000,-280.620371,0.00015,2]
[421500889,1777763442000,-280.620371,0.00015,2]
[421500891,1777763442000,-280.620371,0.00015,2]
[421500898,1777763442000,-188.013668,0.00015,2]
[421500897,1777763442000,-188.013668,0.00015,2]
[421500899,1777763442000,-188.013668,0.00015,2]
[421500900,1777763442000,-188.013668,0.00015,2]
[421500901,1777763442000,-188.013668,0.00015,2]
[421500903,1777763442000,-188.013668,0.00015,2]
[421500902,1777763442000,-188.013668,0.00015,2]
[421500906,1777763442000,-1633.820874,0.00015,2]
[421500904,1777763442000,-188.013668,0.00015,2]
[421500880,1777763442000,-1020716.67467053,0.00015,2]
[421500894,1777763442000,-280.620371,0.00015,2]
[421500870,1777763442000,-806.83,0.00014999,2]
[421500851,1777763442000,-1467.209359,0.00014999,2]
[421500867,1777763442000,-500.0,0.00014999,2]
[421500852,1777763442000,-1467.209359,0.00014999,2]
[421500905,1777763442000,-1633.820874,0.00015,2]
[421500850,1777763442000,-500.0,0.00014999,2]
[421500847,1777763442000,-500.0,0.00014999,2]
[421500844,1777763442000,-500.0,0.00014999,2]
[421500849,1777763442000,-500.0,0.00014999,2]
[421500845,1777763442000,-526.7271693,0.00014999,2]
[421500848,1777763442000,-500.0,0.00014999,2]
[421500846,1777763442000,-500.0,0.00014999,2]
[421500855,1777763442000,-204.527714,0.00014999,2]
[421500853,1777763442000,-1467.209359,0.00014999,2]
[421500858,1777763442000,-204.527714,0.00014999,2]
[421500856,1777763442000,-204.527714,0.00014999,2]
[421500857,1777763442000,-204.527714,0.00014999,2]
[421500854,1777763442000,-1467.209359,0.00014999,2]
[421500860,1777763442000,-500.0,0.00014999,2]
[421500861,1777763442000,-500.0,0.00014999,2]
[421500859,1777763442000,-502.66823644,0.00014999,2]
[421500863,1777763442000,-513.69675982,0.00014999,2]
[421500862,1777763442000,-500.0,0.00014999,2]
[421500866,1777763442000,-500.0,0.00014999,2]
[421500864,1777763442000,-500.0,0.00014999,2]
[421500865,1777763442000,-500.0,0.00014999,2]
[421500878,1777763442000,-316.51,0.00014999,2]
[421500868,1777763442000,-806.83,0.00014999,2]
[421500879,1777763442000,-316.51,0.00014999,2]
[421500873,1777763442000,-622.07,0.00014999,2]
[421500872,1777763442000,-806.83,0.00014999,2]
[421500874,1777763442000,-622.07,0.00014999,2]
[421500871,1777763442000,-806.83,0.00014999,2]
[421500908,1777763442000,-1633.820874,0.00015,2]
[421500944,1777763442000,-204.527714,0.00015,2]
[421500920,1777763442000,-1467.209359,0.00015,2]
[421500973,1777763442000,-200.0,0.00015297,2]
[421500972,1777763442000,-36278.8645638,0.00015226,2]
[421500974,1777763442000,-200.0,0.00015297,2]
[421500964,1777763442000,-316.51,0.00015,2]
[421500965,1777763442000,-316.51,0.00015,2]
[421500963,1777763442000,-1071.0,0.00015,2]
[421500970,1777763442000,-200.0,0.00015145,2]
[421500967,1777763442000,-350.0,0.00015137,2]
[421500968,1777763442000,-1591.24,0.0001514,2]
[421500966,1777763442000,-36278.8645638,0.00015105,2]
[421500909,1777763442000,-1633.820874,0.00015,2]
[421500969,1777763442000,-200.0,0.00015145,2]
[421500975,1777763442000,-151.0,0.00015326,2]
[421500959,1777763442000,-721.0,0.00015,2]
[421500976,1777763442000,-478.96837956,0.00015346,2]
[421500979,1777763442000,-36278.8645638,0.00015468,2]
[421500977,1777763442000,-36278.8645638,0.00015347,2]
[421500985,1777763442000,-360.91682694,0.0001556,2]
[421500980,1777763442000,-1000.0,0.00015521,2]
[421500981,1777763442000,-153.54726958,0.00015521,2]
[421500987,1777763442000,-188.013668,0.00015689,2]
[421500984,1777763442000,-509.83390879,0.00015522,2]
[421500986,1777763442000,-36278.8645638,0.00015589,2]
[421500982,1777763442000,-1000.0,0.00015521,2]
[421500983,1777763442000,-500.0,0.00015521,2]
[421500988,1777763442000,-188.013668,0.00015689,2]
[421500990,1777763442000,-188.013668,0.00015689,2]
[421500989,1777763442000,-188.013668,0.00015689,2]
[421500978,1777763442000,-213.181707,0.00015378,2]
[421500957,1777763442000,-721.0,0.00015,2]
[421500971,1777763442000,-1000.0,0.00015221,2]
[421500961,1777763442000,-721.0,0.00015,2]
[421500926,1777763442000,-1467.209359,0.00015,2]
[421500960,1777763442000,-721.0,0.00015,2]
[421500922,1777763442000,-1633.820874,0.00015,2]
[421500913,1777763442000,-1633.820874,0.00015,2]
[421500917,1777763442000,-1467.209359,0.00015,2]
[421500931,1777763442000,-1467.209359,0.00015,2]
[421500928,1777763442000,-1467.209359,0.00015,2]
[421500933,1777763442000,-1467.209359,0.00015,2]
[421500935,1777763442000,-1467.209359,0.00015,2]
[421500937,1777763442000,-1467.209363,0.00015,2]
[421500939,1777763442000,-204.527714,0.00015,2]
[421500940,1777763442000,-204.527714,0.00015,2]
[421500942,1777763442000,-204.527714,0.00015,2]
[421500945,1777763442000,-204.527714,0.00015,2]
[421500924,1777763442000,-1633.820874,0.00015,2]
[421500941,1777763442000,-204.527714,0.00015,2]
[421500943,1777763442000,-204.527714,0.00015,2]
[421500956,1777763442000,-721.0,0.00015,2]
[421500955,1777763442000,-721.0,0.00015,2]
[421500954,1777763442000,-151.0,0.00015,2]
[421500953,1777763442000,-151.0,0.00015,2]
[421500962,1777763442000,-721.0,0.00015,2]
[421500958,1777763442000,-721.0,0.00015,2]
[421500950,1777763442000,-1000.0,0.00015,2]
[421500948,1777763442000,-1000.0,0.00015,2]
[421500949,1777763442000,-1000.0,0.00015,2]
[421500947,1777763442000,-1000.0,0.00015,2]
[421500951,1777763442000,-1000.0,0.00015,2]
[421500952,1777763442000,-1000.0,0.00015,2]
[421500946,1777763442000,-204.527724,0.00015,2]
[421501037,1777763443000,-2000.0,0.00016616,2]
[421501036,1777763443000,-2000.0,0.00016616,2]
[421501029,1777763443000,-2523.16211449,0.00016438,2]
[421501050,1777763443000,-500.0,0.000172,2]
[421501033,1777763443000,-211.76854749,0.00016438,2]
[421501026,1777763443000,-2500.0,0.00016438,2]
[421501023,1777763443000,-2500.0,0.00016438,2]
[421501020,1777763443000,-2500.0,0.00016438,2]
[421501021,1777763443000,-2500.0,0.00016438,2]
[421501027,1777763443000,-2500.0,0.00016438,2]
[421501025,1777763443000,-2500.0,0.00016438,2]
[421501024,1777763443000,-2500.0,0.00016438,2]
[421501042,1777763443000,-501.38845893,0.0001715,2]
[421501028,1777763443000,-2500.0,0.00016438,2]
[421501035,1777763443000,-1120.8,0.00016448,2]
[421501032,1777763443000,-165.37567559,0.00016438,2]
[421501031,1777763443000,-165.56486449,0.00016438,2]
[421501034,1777763443000,-162.49736036,0.00016438,2]
[421501052,1777763443000,-500.0,0.000172,2]
[421501048,1777763443000,-500.0,0.000172,2]
[421501051,1777763443000,-500.0,0.000172,2]
[421501038,1777763443000,-151.12206715,0.00016695,2]
[421501041,1777763443000,-631.5514543,0.00016986,2]
[421501043,1777763443000,-500.0,0.0001715,2]
[421501046,1777763443000,-2500.0,0.00017164,2]
[421501030,1777763443000,-500.0,0.00016438,2]
[421501018,1777763443000,-2500.0,0.00016438,2]
[421501069,1777763443000,-500.0,0.00017727,2]
[421501017,1777763443000,-2500.0,0.00016438,2]
[421501047,1777763443000,-2500.0,0.00017164,2]
[421500992,1777763443000,-350.0,0.00015795,2]
[421500991,1777763443000,-483.6564287,0.00015768,2]
[421500999,1777763443000,-279.37746454,0.000161,2]
[421500994,1777763443000,-279.37746454,0.00016,2]
[421500997,1777763443000,-1500.0,0.00016068,2]
[421500995,1777763443000,-433.0,0.00016039,2]
[421500996,1777763443000,-155.0,0.00016059,2]
[421500993,1777763443000,-2351.0,0.00015916,2]
[421500998,1777763443000,-1500.0,0.00016068,2]
[421501001,1777763443000,-9999.99,0.00016116,2]
[421501011,1777763443000,-150.0,0.00016438,2]
[421501005,1777763443000,-1633.820884,0.00016123,2]
[421501014,1777763443000,-2500.0,0.00016438,2]
[421501004,1777763443000,-1633.820874,0.00016123,2]
[421501000,1777763443000,-29999.99,0.00016116,2]
[421501003,1777763443000,-1633.820874,0.00016123,2]
[421501006,1777763443000,-208.6515,0.00016137,2]
[421501007,1777763443000,-279.37746454,0.000162,2]
[421501009,1777763443000,-151.0,0.00016283,2]
[421501010,1777763443000,-350.0,0.00016312,2]
[421501008,1777763443000,-282.21,0.00016253,2]
[421501012,1777763443000,-205.38997711,0.00016438,2]
[421501015,1777763443000,-2500.0,0.00016438,2]
[421501022,1777763443000,-2500.0,0.00016438,2]
[421501013,1777763443000,-150.0,0.00016438,2]
[421501016,1777763443000,-2500.0,0.00016438,2]
[421501019,1777763443000,-2500.0,0.00016438,2]
[421501002,1777763443000,-1633.820874,0.00016123,2]
[421501040,1777763443000,-1591.24,0.00016822,2]
[421501088,1777763443000,-2901.46,0.00017728,2]
[421501045,1777763443000,-529.30039817,0.0001715,2]
[421501087,1777763443000,-299.99,0.00017728,4]
[421501086,1777763443000,-9999.99,0.00017728,2]
[421501083,1777763443000,-4015.75,0.00017728,2]
[421501082,1777763443000,-2352.44,0.00017728,2]
[421501084,1777763443000,-150.99,0.00017728,2]
[421501090,1777763443000,-820.47053337,0.00017748,2]
[421501092,1777763443000,-388.65241423,0.00017748,2]
[421501094,1777763443000,-282.21,0.00017878,2]
[421501091,1777763443000,-1004.46237175,0.00017748,2]
[421501095,1777763443000,-500.0,0.0001791,2]
[421501093,1777763443000,-483.52728846,0.00017748,2]
[421501096,1777763443000,-500.0,0.0001791,2]
[421501085,1777763443000,-9999.99,0.00017728,2]
[421501097,1777763443000,-500.0,0.0001791,2]
[421501098,1777763443000,-500.0,0.0001791,2]
[421501101,1777763443000,-517.34724601,0.0001791,2]
[421501100,1777763443000,-500.0,0.0001791,2]
[421501102,1777763443000,-500.0,0.0001791,2]
[421501103,1777763443000,-164.88395263,0.0001791,2]
[421501106,1777763443000,-500.0,0.0001791,2]
[421501108,1777763443000,-500.0,0.0001791,2]
[421501104,1777763443000,-500.0,0.0001791,2]
[421501105,1777763443000,-500.0,0.0001791,2]
[421501107,1777763443000,-500.0,0.0001791,2]
[421501110,1777763443000,-1000.0,0.00017934,2]
[421501109,1777763443000,-1003.48747475,0.00017934,2]
[421501099,1777763443000,-167.33515109,0.0001791,2]
[421501089,1777763443000,-9999.99,0.00017728,2]
[421501039,1777763443000,-958.0,0.000168,3]
[421501078,1777763443000,-622.07,0.00017727,2]
[421501054,1777763443000,-500.0,0.00017368,2]
[421501064,1777763443000,-3000.0,0.00017712,2]
[421501053,1777763443000,-736.0,0.00017354,2]
[421501056,1777763443000,-500.0,0.00017386,2]
[421501055,1777763443000,-500.0,0.00017386,2]
[421501057,1777763443000,-500.0,0.00017386,2]
[421501060,1777763443000,-437.0,0.00017508,2]
[421501058,1777763443000,-374.49,0.00017392,2]
[421501059,1777763443000,-5528.0,0.000174,5]
[421501063,1777763443000,-3000.0,0.00017712,2]
[421501062,1777763443000,-1001.10866992,0.00017698,2]
[421501061,1777763443000,-155.0,0.00017519,2]
[421501065,1777763443000,-151.0,0.00017725,2]
[421501079,1777763443000,-622.07,0.00017727,2]
[421501066,1777763443000,-500.0,0.00017727,2]
[421501081,1777763443000,-9999.99,0.00017728,2]
[421501080,1777763443000,-622.1,0.00017727,2]
[421501077,1777763443000,-622.07,0.00017727,2]
[421501067,1777763443000,-500.0,0.00017727,2]
[421501074,1777763443000,-806.83,0.00017727,2]
[421501072,1777763443000,-806.83,0.00017727,2]
[421501073,1777763443000,-806.83,0.00017727,2]
[421501070,1777763443000,-493.92,0.00017727,2]
[421501071,1777763443000,-806.83,0.00017727,2]
[421501076,1777763443000,-622.07,0.00017727,2]
[421501068,1777763443000,-500.0,0.00017727,2]
[421501075,1777763443000,-806.91929751,0.00017727,2]
[421501149,1777763444000,-1000.57641046,0.00018458,2]
[421501146,1777763444000,-564.97161812,0.00018458,2]
[421501150,1777763444000,-614.19381913,0.00018458,2]
[421501148,1777763444000,-502.38539818,0.00018458,2]
[421501139,1777763444000,-500.0,0.00018375,2]
[421501138,1777763444000,-313.71398033,0.00018375,2]
[421501137,1777763444000,-492.28499596,0.00018375,2]
[421501140,1777763444000,-500.0,0.00018375,2]
[421501141,1777763444000,-1001.39619458,0.00018458,2]
[421501151,1777763444000,-182.20972227,0.00018458,2]
[421501145,1777763444000,-1000.65411463,0.00018458,2]
[421501154,1777763444000,-250.0,0.00018662,2]
[421501159,1777763444000,-1001.48614436,0.00018673,2]
[421501152,1777763444000,-5175.85017373,0.00018465,2]
[421501155,1777763444000,-289.09618025,0.00018662,2]
[421501157,1777763444000,-1001.77538145,0.00018673,2]
[421501156,1777763444000,-1005.02774698,0.00018662,2]
[421501158,1777763444000,-1000.94736209,0.00018673,2]
[421501160,1777763444000,-1000.9976474,0.00018673,2]
[421501170,1777763444000,-1001.93383027,0.00018923,2]
[421501171,1777763444000,-1001.83667771,0.00018923,2]
[421501169,1777763444000,-5843.88,0.00018856,2]
[421501164,1777763444000,-1001.68787564,0.00018673,2]
[421501166,1777763444000,-1007.72604448,0.00018673,2]
[421501136,1777763444000,-163.58131943,0.00018375,2]
[421501153,1777763444000,-1591.24,0.00018504,2]
[421501134,1777763444000,-500.0,0.00018375,2]
[421501127,1777763444000,-500.0,0.00018125,2]
[421501135,1777763444000,-500.0,0.00018375,2]
[421501111,1777763444000,-1107.22291979,0.00017934,2]
[421501112,1777763444000,-160.92549362,0.00018114,2]
[421501113,1777763444000,-500.0,0.00018114,2]
[421501114,1777763444000,-150.0,0.00018114,2]
[421501119,1777763444000,-500.0,0.00018125,2]
[421501117,1777763444000,-500.7987881,0.00018114,2]
[421501115,1777763444000,-500.19786585,0.00018114,2]
[421501116,1777763444000,-500.0,0.00018114,2]
[421501118,1777763444000,-520.71840091,0.00018114,2]
[421501120,1777763444000,-500.0,0.00018125,2]
[421501122,1777763444000,-500.0,0.00018125,2]
[421501121,1777763444000,-500.0,0.00018125,2]
[421501126,1777763444000,-500.0,0.00018125,2]
[421501165,1777763444000,-1001.45927776,0.00018673,2]
[421501124,1777763444000,-500.0,0.00018125,2]
[421501130,1777763444000,-1539.42033263,0.0001826,2]
[421501128,1777763444000,-500.0,0.00018125,2]
[421501123,1777763444000,-500.0,0.00018125,2]
[421501129,1777763444000,-500.0,0.00018125,2]
[421501125,1777763444000,-500.0,0.00018125,2]
[421501142,1777763444000,-817.19145244,0.00018458,2]
[421501132,1777763444000,-351.93,0.00018276,2]
[421501133,1777763444000,-500.0,0.00018375,2]
[421501143,1777763444000,-1000.68512191,0.00018458,2]
[421501131,1777763444000,-2226.01558816,0.0001826,2]
[421501144,1777763444000,-1000.0,0.00018458,2]
[421501162,1777763444000,-1001.26216436,0.00018673,2]
[421501147,1777763444000,-1000.69587583,0.00018458,2]
[421501161,1777763444000,-1000.79462468,0.00018673,2]
[421501195,1777763444000,-500.0,0.00019178,2]
[421501190,1777763444000,-500.0,0.00019178,2]
[421501201,1777763444000,-500.0,0.00019178,2]
[421501205,1777763444000,-500.0,0.00019178,2]
[421501203,1777763444000,-500.0,0.00019178,2]
[421501204,1777763444000,-500.0,0.00019178,2]
[421501206,1777763444000,-500.0,0.00019178,2]
[421501208,1777763444000,-500.0,0.00019178,2]
[421501209,1777763444000,-500.0,0.00019178,2]
[421501210,1777763444000,-500.0,0.00019178,2]
[421501212,1777763444000,-350.0,0.0001921,2]
[421501211,1777763444000,-292.47735596,0.00019178,2]
[421501196,1777763444000,-500.0,0.00019178,2]
[421501202,1777763444000,-500.0,0.00019178,2]
[421501214,1777763444000,-451.79661267,0.00019758,2]
[421501216,1777763444000,-834.12,0.000199,2]
[421501217,1777763444000,-164.26,0.000199,2]
[421501219,1777763444000,-661.22,0.00019949,2]
[421501215,1777763444000,-956.19,0.000199,2]
[421501218,1777763444000,-228.29,0.000199,2]
[421501220,1777763444000,-201881.17131336,0.0001995,15]
[421501221,1777763444000,-558.84,0.00014661,2]
[421501224,1777763444000,-276.96430478,0.0001995,15]
[421501222,1777763444000,-137.56112496,0.00014999,2]
[421501223,1777763444000,-178.94887504,0.00014999,2]
[421501168,1777763444000,-1252.0,0.00018779,2]
[421501213,1777763444000,-282.21,0.00019503,2]
[421501193,1777763444000,-500.0,0.00019178,2]
[421501207,1777763444000,-500.0,0.00019178,2]
[421501192,1777763444000,-500.0,0.00019178,2]
[421501172,1777763444000,-1116.49767584,0.00018923,2]
[421501187,1777763444000,-500.0,0.00019178,2]
[421501163,1777763444000,-1001.40664377,0.00018673,2]
[421501167,1777763444000,-1000.93431225,0.00018673,2]
[421501174,1777763444000,-195.41166249,0.00018923,2]
[421501186,1777763444000,-500.0,0.00019178,2]
[421501173,1777763444000,-1006.18784204,0.00018923,2]
[421501176,1777763444000,-478.24893355,0.00019126,2]
[421501185,1777763444000,-500.0,0.00019178,2]
[421501175,1777763444000,-152.0,0.00019,2]
[421501177,1777763444000,-500.0,0.00019178,2]
[421501178,1777763444000,-500.0,0.00019178,2]
[421501179,1777763444000,-500.0,0.00019178,2]
[421501184,1777763444000,-500.0,0.00019178,2]
[421501198,1777763444000,-500.0,0.00019178,2]
[421501183,1777763444000,-500.0,0.00019178,2]
[421501182,1777763444000,-500.0,0.00019178,2]
[421501180,1777763444000,-500.0,0.00019178,2]
[421501191,1777763444000,-500.0,0.00019178,2]
[421501188,1777763444000,-500.0,0.00019178,2]
[421501197,1777763444000,-500.0,0.00019178,2]
[421501194,1777763444000,-500.0,0.00019178,2]
[421501200,1777763444000,-500.0,0.00019178,2]
[421501199,1777763444000,-500.0,0.00019178,2]
[421501189,1777763444000,-500.0,0.00019178,2]
[421501181,1777763444000,-500.0,0.00019178,2]
[421501270,1777763445000,-163.06115104,0.00021117,2]
[421501253,1777763445000,-6038.0,0.00020555,2]
[421501267,1777763445000,-1295.05,0.00020951,2]
[421501272,1777763445000,-1534.0,0.0002112,2]
[421501269,1777763445000,-152.0,0.00021,2]
[421501266,1777763445000,-375.0,0.00020951,2]
[421501262,1777763445000,-3534.0,0.00020862,2]
[421501260,1777763445000,-150.563,0.00020862,2]
[421501261,1777763445000,-265.836,0.00020862,2]
[421501256,1777763445000,-200.0,0.00020862,2]
[421501271,1777763445000,-500.0,0.00021117,2]
[421501263,1777763445000,-1049.0,0.00020862,2]
[421501255,1777763445000,-150.0,0.00020862,2]
[421501277,1777763445000,-151.0,0.0002112,2]
[421501286,1777763445000,-151.0,0.0002112,2]
[421501274,1777763445000,-1469.49281257,0.0002112,2]
[421501275,1777763445000,-151.0,0.0002112,2]
[421501276,1777763445000,-151.0,0.0002112,2]
[421501273,1777763445000,-1534.0,0.0002112,2]
[421501289,1777763445000,-151.0,0.0002112,2]
[421501279,1777763445000,-151.0,0.0002112,2]
[421501278,1777763445000,-153.0,0.0002112,2]
[421501280,1777763445000,-151.0,0.0002112,2]
[421501281,1777763445000,-151.0,0.0002112,2]
[421501290,1777763445000,-151.0,0.0002112,2]
[421501284,1777763445000,-151.0,0.0002112,2]
[421501285,1777763445000,-151.0,0.0002112,2]
[421501264,1777763445000,-1351.0,0.00020862,2]
[421501283,1777763445000,-151.0,0.0002112,2]
[421501268,1777763445000,-1300.11,0.00020951,2]
[421501259,1777763445000,-256.929,0.00020862,2]
[421501237,1777763445000,-316.51,0.00015,2]
[421501254,1777763445000,-1664.0,0.00020555,2]
[421501287,1777763445000,-151.0,0.0002112,2]
[421501226,1777763445000,-316.51,0.00014632,2]
[421501235,1777763445000,-558.84,0.00014999,2]
[421501225,1777763445000,-316.51,0.000146,2]
[421501230,1777763445000,-361.11065723,0.00014884,2]
[421501231,1777763445000,-558.84,0.00014999,2]
[421501229,1777763445000,-197.72934277,0.00014884,2]
[421501227,1777763445000,-31.98,0.00014662,2]
[421501228,1777763445000,-284.53,0.00014662,2]
[421501236,1777763445000,-316.51,0.00014999,2]
[421501232,1777763445000,-558.84,0.00014999,2]
[421501233,1777763445000,-558.84,0.00014999,2]
[421501234,1777763445000,-558.84,0.00014999,2]
[421501239,1777763445000,-84146.87135003,0.0001995,15]
[421501258,1777763445000,-173.308,0.00020862,2]
[421501238,1777763445000,-558.84,0.00017727,2]
[421501249,1777763445000,-623.0,0.00020313,2]
[421501248,1777763445000,-1116.42,0.00020306,2]
[421501244,1777763445000,-280.620373,0.0001995,2]
[421501243,1777763445000,-280.620371,0.0001995,2]
[421501250,1777763445000,-307.0,0.000204,2]
[421501246,1777763445000,-502.06580869,0.0002017,2]
[421501242,1777763445000,-280.620371,0.0001995,2]
[421501241,1777763445000,-280.620371,0.0001995,2]
[421501247,1777763445000,-1591.24,0.00020186,2]
[421501245,1777763445000,-152.0,0.0002,2]
[421501251,1777763445000,-1000.0,0.000204,2]
[421501257,1777763445000,-151.0,0.00020862,2]
[421501252,1777763445000,-155.0,0.00020439,2]
[421501265,1777763445000,-1267.0,0.00020862,2]
[421501240,1777763445000,-151.0,0.0001995,2]
[421501282,1777763445000,-151.0,0.0002112,2]
[421501346,1777763445000,-1534.0,0.0002326,2]
[421501292,1777763445000,-151.0,0.0002112,2]
[421501330,1777763445000,-1534.0,0.0002326,2]
[421501325,1777763445000,-1534.0,0.0002326,2]
[421501326,1777763445000,-151.0,0.0002326,2]
[421501329,1777763445000,-1534.0,0.0002326,2]
[421501328,1777763445000,-157.0,0.0002326,2]
[421501344,1777763445000,-1534.0,0.0002326,2]
[421501345,1777763445000,-1534.0,0.0002326,2]
[421501334,1777763445000,-1534.0,0.0002326,2]
[421501338,1777763445000,-1534.0,0.0002326,2]